Workbook

Sheet Sheet1
F7: √ ή -- | H7: Είδος ελέγχου
H8: Τακτικός
H9: Επανέλεγχος
H10: Καταγγελία
H11: RASFF
E12: Προηγούμενος έλεγχος:
E13: Ημερομηνία & ώρα ελέγχου:
B15: ΕΝΤΥΠΟ ΕΛΕΓΧΟΥ ΕΓΚΑΤΑΣΤΑΣΕΩΝ ΠΑΡΑΓΩΓΗΣ & ΤΥΠΟΠΟΙΗΣΗΣ ΕΛΑΙΟΛΑΔΟΥ
A16: Α | B16: ΣΤΟΙΧΕΙΑ ΕΠΙΧΕΙΡΗΣΗΣ
A17: 1 | B17: Επωνυμία
A18: 2 | B18: Διεύθυνση
A19: 3 | B19: Τηλ. – Fax
A20: 4 | B20: E-mail
A21: 5 | B21: Ονοματεπώνυμο ιδιοκτήτη
A22: 6 | B22: ΑΦΜ / Δ.Ο.Υ.
A23: 7 | B23: Ονοματεπώνυμο νόμιμου εκπροσώπου
A24: 8 | B24: Αριθμός Γνωστοποίησης / Ημερομηνία Υποβολής
A25: Β | B25: ΔΡΑΣΤΗΡΙΟΤΗΤΑ-ΠΡΟΪΟΝΤΑ
F26: ΠΕΡΙΓΡΑΦΗ
A27: 1 | B27: Εξαιρετικό παρθένο ελαιόλαδο
A28: 2 | B28: Παρθένο ελαιόλαδο
A29: 3 | B29: Ελαιόλαδο
A30: 4 | B30: Πυρηνέλαιο
A31: 5 | B31: Άλλα προϊόντα
A32: Γ | B32: ΠΡΟΣΘΕΤΑ ΣΤΟΙΧΕΙΑ
A33: 1 | B33: Δυναμικότητα - Όγκος παραγόμενων προϊόντων (μηνιαία ή ετήσια παραγωγή)
A34: 2 | B34: Εξαγωγική δραστηριότητα-όγκος % ετήσιας παραγωγής
A35: 3 | B35: Εποχική Λειτουργία
A36: 4 | B36: Αριθμός εργαζομένων
A37: ΚΕΦΑΛΑΙΟ 1: ΣΥΣΤΗΜΑΤΑ ΚΑΙ ΔΙΑΔΙΚΑΣΙΕΣ
A38: Α | B38: ΣΥΣΤΗΜΑ ΑΥΤΟΕΛΕΓΧΟΥ | F38: ΝΑΙ (Συμμόρφωση) | G38: ΜΕΡΙΚΗ ΣΥΜΜΟΡΦΩΣΗ | I38: ΟΧΙ (μη συμμόρφωση) | K38: Δεν εφαρμόζεται | M38: ΣΧΟΛΙΑ
A39: 1 | B39: Διαγράμματα ροής ή περιγραφή ροής για όλα τα προϊόντα ή ανά προϊόν | F39: 0 | G39: 9 | I39: 18 | K39: 0
A40: 2 | B40: Επιβεβαίωση τήρησης διαδικασίας βάσει των αρχών HACCP | F40: 0 | G40: 9 | I40: 18 | K40: 0
A41: 3 | B41: Έχουν καταγραφεί όλοι οι πιθανοί κίνδυνοι και έχουν εντοπιστεί ΣΕ ή ΚΣΕ για όλες τις κατηγορίες των παραγόμενων προϊόντων | F41: 0 | G41: 9 | I41: 18 | K41: 0
A42: 4 | B42: Εφαρμόζονται αποτελεσματικές διαδικασίες παρακολούθησης στα ΚΣΕ ή/και ΣΕ | F42: 0 | G42: 6 | I42: 12 | K42: 0
A43: 5 | B43: Υπάρχει τεκμηρίωση των κρίσιμων ορίων (βιβλιογραφική ή νομοθετική); | F43: 0 | G43: 6 | I43: 12 | K43: 0
A44: 6 | B44: Έχουν καθοριστεί οι απαραίτητες διορθωτικές ενέργειες και τεκμηριώνονται | F44: 0 | G44: 6 | I44: 12 | K44: 0
A45: 7 | B45: Εφαρμόζονται διαδικασίες επαλήθευσης/επικύρωσης για την ανάδειξη της αποτελεσματικότητας | F45: 0 | G45: 6 | I45: 12 | K45: 0
A46: 8 | B46: Γίνεται ανασκόπηση του συστήματος HACCP (αλλαγές νομοθεσίας, προμηθευττών, αλλαγές προϊόντων κλπ) | F46: 0 | G46: 6 | I46: 12 | K46: 0
A47: 9 | B47: Τήρηση αρχείων | F47: 0 | G47: 6 | I47: 12 | K47: 0
B48: Εφαρμογή συστήματος HACCP/αξιοποίηση δυνατότητας ευελιξίας | F48: Πλήρες HACCP Ευελιξία
A49: Β | B49: ΚΑΘΑΡΙΣΜΟΣ ΑΠΟΛΥΜΑΝΣΗ | F49: ΝΑΙ (Συμμόρφωση) | G49: ΜΕΡΙΚΗ ΣΥΜΜΟΡΦΩΣΗ | I49: ΟΧΙ (μη συμμόρφωση) | K49: Δεν εφαρμόζεται | M49: ΣΧΟΛΙΑ
A50: 10 | B50: Εγκατεστημένη διαδικασία καθαρισμού – απολύμανσης με προσδιορισμένη συχνότητα που να ικανοποιεί τις απαιτήσεις της εγκατάστασης | F50: 0 | G50: 6 | I50: 12 | K50: 0
A51: 11 | B51: Έλεγχος αποτελεσματικότητας του καθαρισμού / απολύμανσης επιφανειών / εξοπλισμού / Ακολουθείται διαδικασία καθαρισμού με σύστημα CIP. | F51: 0 | G51: 3 | I51: 6 | K51: 0
A52: 12 | B52: Κατάλληλα υλικά καθαρισμού – απολύμανσης που χρησιμοποιούνται βάσει των οδηγιών χρήσης τους | F52: 0 | G52: 6 | I52: 12 | K52: 0
A53: Γ | B53: ΠΡΟΓΡΑΜΜΑ ΕΛΕΓΧΟΥ ΕΠΙΒΛΑΒΩΝ ΟΡΓΑΝΙΣΜΩΝ | F53: ΝΑΙ (Συμμόρφωση) | G53: ΜΕΡΙΚΗ ΣΥΜΜΟΡΦΩΣΗ | I53: ΟΧΙ (μη συμμόρφωση) | K53: Δεν εφαρμόζεται | M53: ΣΧΟΛΙΑ
A54: 13 | B54: Εφαρμογή τεκμηριωμένου προγράμματος ελέγχου επιβλαβών οργανισμών | F54: 0 | G54: 6 | I54: 12 | K54: 0
A55: 14 | B55: Χρήση προληπτικών μέτρων (σίτες, αεροκουρτίνες, άλλοι προστατευτικοί μηχανισμοί) | F55: 0 | G55: 6 | I55: 12 | K55: 0
A56: 15 | B56: Τοποθέτηση των παγίδων σύμφωνα με το σχετικό σχεδιάγραμμα / Ικανοποιητική κάλυψη | F56: 0 | G56: 6 | I56: 12 | K56: 0
A57: 16 | B57: Χρήση Εγκεκριμένων σκευασμάτων | F57: 0 | G57: 6 | I57: 12 | K57: 0
A58: 17 | B58: Διαθέσιμες εκθέσεις & καταγραφή ευρημάτων | F58: 0 | G58: 3 | I58: 6 | K58: 0
A59: Δ | B59: ΕΚΠΑΙΔΕΥΣΗ ΠΡΟΣΩΠΙΚΟΥ | F59: ΝΑΙ (Συμμόρφωση) | G59: ΜΕΡΙΚΗ ΣΥΜΜΟΡΦΩΣΗ | I59: ΟΧΙ (μη συμμόρφωση) | K59: Δεν εφαρμόζεται | M59: ΣΧΟΛΙΑ
A60: 18 | B60: Υπάρχει μέριμνα και πρόγραμμα για την εκπαίδευση νέων υπαλλήλων ή όταν υφίστανται αλλαγές στην παραγωγική διαδικασία (νέο προϊόν, υιοθέτηση νέας τεχνολογίας) | F60: 0 | G60: 6 | I60: 12 | K60: 0
A61: 19 | B61: Περιεχόμενο και σχετική τεκμηρίωση (αρχές ατομικής υγιεινής, αρχές ορθών πρακτικών, εκτέλεση εργασίας βάσει της θέσης) | F61: 0 | G61: 3 | I61: 6 | K61: 0
A62: Ε | B62: ΝΕΡΟ | F62: ΝΑΙ (Συμμόρφωση) | G62: ΜΕΡΙΚΗ ΣΥΜΜΟΡΦΩΣΗ | I62: ΟΧΙ (μη συμμόρφωση) | K62: Δεν εφαρμόζεται | M62: ΣΧΟΛΙΑ
A63: 20 | B63: Διαθέσιμο σχεδιάγραμμα σημείων υδροδοσίας (παροχή ζεστού & κρύου) | F63: 0 | G63: 3 | I63: 6 | K63: 0
A64: 21 | B64: Συχνότητα μικροβιολογικών και φυσικοχημικών εξετάσεων νερού ακολουθείται | F64: 0 | G64: 3 | I64: 6 | K64: 0
B65: Προσδιορισμός προέλευσης πόσιμου νερού (δημόσιο δίκτυο ύδρευσης- γεώτρηση) | D65: Δημόσιο δίκτυο | F65: Profile εγκατάστασης- δε βαθμολογείται
D66: Ιδία πηγή (π.χ γεώτρηση) | F66: Profile εγκατάστασης- δε βαθμολογείται
B67: Άλλα μέτρα για αποφυγή κινδύνων (UV λάμπες – χλωρίωση – φίλτρα & μέτρα διήθησης) | F67: ΝΑΙ ΟΧΙ
B68: ΣΥΝΟΛΟ ΚΕΦΑΛΑΙΟΥ 1 | I68: =SUM(I39:J64) -> 240 | M68: =SUM(M39:O64) -> 0
I69: 0.7 | K69: 0.399 | M69: =IF(M68>=I70,"HIGH RISK",IF(M68<=K70,"LOW RISK","MEDIUM RISK")) -> LOW RISK
I70: =70%*I68 -> 168 | K70: =39.9%*I68 -> 95.76
A71: ΚΕΦΑΛΑΙΟ 2: ΙΧΝΗΛΑΣΙΜΟΤΗΤΑ
A72: Α | B72: ΙΧΝΗΛΑΣΙΜΟΤΗΤΑ | F72: ΝΑΙ (Συμμόρφωση) | G72: ΜΕΡΙΚΗ ΣΥΜΜΟΡΦΩΣΗ | I72: ΟΧΙ (μη συμμόρφωση) | K72: Δεν εφαρμόζεται | M72: ΣΧΟΛΙΑ
A73: 22 | B73: Συσχέτιση παραγωγών/προμηθευτών ελαιολάδων με το αποθηκευμένο προϊόν | F73: 0 | G73: 9 | I73: 18 | K73: 0
A74: 23 | B74: Τήρηση αρχείου εισροών/εκροών | F74: 0 | G74: 9 | I74: 18 | K74: 0
A75: 24 | B75: Τήρηση παραστατικών που τεκμηριώνουν την προέλευση του ελαιολάδου και πυρηνελαίου | F75: 0 | G75: 9 | I75: 18 | K75: 0
A76: 25 | B76: Συσχέτιση τιμολογίων παραλαβής με τιμολόγια πώλησης και επισήμανση τελικών προϊόντων (αναγραφή της ίδιας ποιοτικής κατηγορίας ελαιόλαδου) | F76: 0 | G76: 9 | I76: 18 | K76: 0
A77: 26 | B77: Διοικητικός έλεγχος δελτίων παραγωγής και κίνησης δεξαμενών στο πλαίσιο ελέγχου φαινομένων νοθείας | F77: 0 | G77: 9 | I77: 18 | K77: 0
A78: 27 | B78: Τρόπος σήμανσης παρτίδων τελικών προϊόντων | F78: 0 | G78: 9 | I78: 18 | K78: 0
A79: 28 | B79: Αποτελεσματική λειτουργία του συστήματος ανάκλησης | F79: 0 | G79: 9 | I79: 18 | K79: 0
B80: ΣΥΝΟΛΟ ΚΕΦΑΛΑΙΟΥ 2 | I80: =SUM(I73:J79) -> 126 | M80: =SUM(M73:O79) -> 0
I81: 0.7 | K81: 0.399 | M81: =IF(M80>=I82,"HIGH RISK",IF(M80<=K82,"LOW RISK","MEDIUM RISK")) -> LOW RISK
I82: =70%*I80 -> 88.2 | K82: =39.9%*I80 -> 50.274
A83: ΚΕΦΑΛΑΙΟ 3: ΕΞΕΤΑΣΕΙΣ-ΕΡΓΑΣΤΗΡΙΑΚΟΙ ΕΛΕΓΧΟΙ
A84: Α | B84: ΕΞΕΤΑΣΕΙΣ / ΕΡΓΑΣΤΗΡΙΑΚΟΙ ΕΛΕΓΧΟΙ | F84: ΝΑΙ (Συμμόρφωση) | G84: ΜΕΡΙΚΗ ΣΥΜΜΟΡΦΩΣΗ | I84: ΟΧΙ (μη συμμόρφωση) | K84: Δεν εφαρμόζεται | M84: ΣΧΟΛΙΑ
A85: 29 | B85: Πλάνο εργαστηριακών αναλύσεων | F85: 0 | G85: 6 | I85: 12 | K85: 0
A86: 30 | B86: Ανάλυση στο πλαίσιο προσδιορισμού της ποιοτικής κατηγορίας του ελαιολάδου | F86: 0 | G86: 9 | I86: 18 | K86: 0
A87: 31 | B87: Ανάλυση για υπολείμματα φυτοπροστατευτικών προϊόντων, στο στάδιο της παραλαβής (Καν. 396/2005) | F87: 0 | G87: 6 | I87: 12 | K87: 0
A88: 32 | B88: Ανάλυση για επιμολυντές, στο πλαίσιο των απαιτήσεων του Καν. 1881/2006 (πολυφαινόλες, φθαλικοί εστέρες, PAH) | F88: 0 | G88: 6 | I88: 12 | K88: 0
A89: 33 | B89: ΤΡΟΠΟΣ ΠΡΟΣΔΙΟΡΙΣΜΟΥ ΧΡΟΝΟΥ ΖΩΗΣ ΠΡΟΪΟΝΤΩΝ (Shelf - life): Διαδικασία προσδιορισμού του χρόνου ζωής των τελικών προϊόντων | F89: 0 | G89: 3 | I89: 6 | K89: 0
B90: Εργαστηριακή υποστήριξη εντός ή εκτός επιχείρησης | F90: YES/NO
B91: Διαπιστευμένο εργαστήριο | F91: YES/NO
B92: Χρήση πρότυπων μεθόδων αναφοράς ή ισοδύναμων επικυρωμένων έναντι της μεθόδου αναφοράς, εναλλακτικών μεθόδων | F92: YES/NO
B93: ΣΥΝΟΛΟ ΚΕΦΑΛΑΙΟΥ 3 | I93: =SUM(I85:J89) -> 60 | M93: =SUM(M85:O89) -> 0
I94: 0.7 | K94: 0.399 | M94: =IF(M93>=I95,"HIGH RISK",IF(M93<=K95,"LOW RISK","MEDIUM RISK")) -> LOW RISK
I95: =70%*I93 -> 42 | K95: =39.9%*I93 -> 23.94
A96: ΚΕΦΑΛΑΙΟ 4: ΕΛΕΓΧΟΣ ΓΡΑΜΜΗΣ ΠΑΡΑΓΩΓΗΣ - ΕΠΑΛΗΘΕΥΣΗ ΔΙΑΔΙΚΑΣΙΩΝ
A97: 4Α: ΕΓΚΑΤΑΣΤΑΣΕΙΣ ΠΑΡΑΓΩΓΗΣ ΕΛΑΙΟΛΑΔΟΥ
A98: Α | B98: ΠΑΡΑΛΑΒΗ - ΑΠΟΘΗΚΕΥΣΗ ΕΛΑΙΟΛΑΔΟΥ | F98: ΝΑΙ (Συμμόρφωση) | G98: ΜΕΡΙΚΗ ΣΥΜΜΟΡΦΩΣΗ | I98: ΟΧΙ (μη συμμόρφωση) | K98: Δεν εφαρμόζεται | M98: ΣΧΟΛΙΑ
A99: 33 | B99: Τήρηση κανόνων ορθής υγιεινής στον χώρο παραλαβής | F99: 0 | G99: 9 | I99: 18 | K99: 0
A100: 34 | B100: Παρακολούθηση της καθαρότητας του νερού έκπλυσης & αλλαγή του όσο συχνά απαιτείται | F100: 0 | G100: 6 | I100: 12 | K100: 0
A101: Β | B101: ΠΑΡΑΓΩΓΙΚΗ ΔΙΑΔΙΚΑΣΙΑ/ΣΥΣΚΕΥΑΣΙΑ | F101: ΝΑΙ (Συμμόρφωση) | G101: ΜΕΡΙΚΗ ΣΥΜΜΟΡΦΩΣΗ | I101: ΟΧΙ (μη συμμόρφωση) | K101: Δεν εφαρμόζεται | M101: ΣΧΟΛΙΑ
A102: 35 | B102: Χρήση πόσιμου νερού στο στάδιο της πολτοποίησης-μάλαξης | F102: 0 | G102: 9 | I102: 18 | K102: 0
A103: 36 | B103: Έλεγχος θερμοκρασίας ελαιομάζας. Εφόσον χρησιμοποιηθεί η έκφραση "εξαγωγή εν ψυχρώ" η θερμοκρασία θα πρέπει να είναι ≤27 οC | F103: 0 | G103: 3 | I103: 6 | K103: 0
A104: 37 | B104: Παραλαβή ελαίου (απομάκρυνση του ελαιοπυρήνα και της πάστας που παραμένει & καθημερινός διεξοδικός καθαρισμός προς αποφυγή ζύμωσης) | F104: 0 | G104: 9 | I104: 18 | K104: 0
A105: Γ | B105: ΑΠΟΘΗΚΕΥΣΗ - ΔΙΑΝΟΜΗ ΠΡΟΪΟΝΤΩΝ | F105: ΝΑΙ (Συμμόρφωση) | G105: ΜΕΡΙΚΗ ΣΥΜΜΟΡΦΩΣΗ | I105: ΟΧΙ (μη συμμόρφωση) | K105: Δεν εφαρμόζεται | M105: ΣΧΟΛΙΑ
A106: 38 | B106: Αποθήκευση ελαιολάδου σε χώρο δροσερό (προτεινόμενη θερμοκρασία 15οC) | F106: 0 | G106: 9 | I106: 18 | K106: 0
A107: 39 | B107: Σήμανση δεξαμενών (ανά είδος ελαιολάδου) | F107: 0 | G107: 9 | I107: 18 | K107: 0
A108: 40 | B108: Διανομή (καταλληλότητα και συνθήκες μεταφοράς) | F108: 0 | G108: 6 | I108: 12 | K108: 0
B109: ΣΥΝΟΛΟ ΚΕΦΑΛΑΙΟΥ 4Α | I109: =SUM(I99:J108) -> 120 | M109: =SUM(M99:O108) -> 0
I110: 0.7 | K110: 0.399 | M110: =IF(M109>=I111,"HIGH RISK",IF(M109<=K111,"LOW RISK","MEDIUM RISK")) -> LOW RISK
I111: =70%*I109 -> 84 | K111: =39.9%*I109 -> 47.88
A112: 4Β: ΕΓΚΑΤΑΣΤΑΣΕΙΣ ΤΥΠΟΠΟΙΗΣΗΣ ΕΛΑΙΟΛΑΔΟΥ
A113: Α | B113: ΠΑΡΑΛΑΒΗ - ΑΠΟΘΗΚΕΥΣΗ ΕΛΑΙΟΛΑΔΟΥ | F113: ΝΑΙ (Συμμόρφωση) | G113: ΜΕΡΙΚΗ ΣΥΜΜΟΡΦΩΣΗ | I113: ΟΧΙ (μη συμμόρφωση) | K113: Δεν εφαρμόζεται | M113: ΣΧΟΛΙΑ
A114: 41 | B114: Τήρηση κανόνων ορθής υγιεινής στον χώρο παραλαβής | F114: 0 | G114: 9 | I114: 18 | K114: 0
A115: 42 | B115: Αποθήκευση ελαιολάδου σε χώρο δροσερό (προτεινόμενη θερμοκρασία 15οC) | F115: 0 | G115: 6 | I115: 12 | K115: 0
A116: 43 | B116: Σήμανση δεξαμενών (ανά είδος ελαιολάδου) | F116: 0 | G116: 9 | I116: 18 | K116: 0
A117: 44 | B117: Αποθήκευση παρθένων ελαιολάδων διαφορετικής καταγωγής σε χωριστούς δεξαμενικούς χώρους σύμφωνα με τις απαιτήσεις της ΚΥΑ 323902 (ΦΕΚ 2026 Β’/18-9-2009) | F117: 0 | G117: 9 | I117: 18 | K117: 0
A118: Β | B118: ΠΑΡΑΓΩΓΙΚΗ ΔΙΑΔΙΚΑΣΙΑ | F118: ΝΑΙ (Συμμόρφωση) | G118: ΜΕΡΙΚΗ ΣΥΜΜΟΡΦΩΣΗ | I118: ΟΧΙ (μη συμμόρφωση) | K118: Δεν εφαρμόζεται | M118: ΣΧΟΛΙΑ
A119: 45 | B119: Τυποποίηση ελαιολάδου: προληπτικά μέτρα κατά την τυποποίηση διαφορετικών ποιοτικών κατηγοριών ελαιολάδου (ξέπλυμα σωληνώσεων, διαφορετικές σωληνώσεις κ.λπ.) | F119: 0 | G119: 6 | I119: 12 | K119: 0
A120: 46 | B120: Συσκευασία: ορθή υγιεινή του χώρου και των υλικών συσκευασίας | F120: 0 | G120: 6 | I120: 12 | K120: 0
A121: Γ | B121: ΑΠΟΘΗΚΕΥΣΗ - ΔΙΑΝΟΜΗ ΠΡΟΪΟΝΤΩΝ | F121: ΝΑΙ (Συμμόρφωση) | G121: ΜΕΡΙΚΗ ΣΥΜΜΟΡΦΩΣΗ | I121: ΟΧΙ (μη συμμόρφωση) | K121: Δεν εφαρμόζεται | M121: ΣΧΟΛΙΑ
A122: 47 | B122: Αποθήκευση σε κατάλληλες συνθήκες θερμοκρασίας και επιπέδου υγιεινής | F122: 0 | G122: 6 | I122: 12 | K122: 0
A123: 48 | B123: Διανομή (καταλληλότητα και συνθήκες μεταφοράς) | F123: 0 | G123: 6 | I123: 12 | K123: 0
A124: 49 | B124: Προϊόντα που ανακαλούνται επισημαίνονται και αποθηκεύονται σε διακριτό χώρο και διαχειρίζονται ανάλογα | F124: 0 | G124: 3 | I124: 6 | K124: 0
A125: 50 | B125: Υφίσταται διαδικασία πολιτικής επιστροφών (Ξεχωριστή αποθήκευση και με κατάλληλη επισήμανση.) | F125: 0 | G125: 3 | I125: 6 | K125: 0
B126: ΣΥΝΟΛΟ ΚΕΦΑΛΑΙΟΥ 4Β | I126: =SUM(I114:J125) -> 126 | M126: =SUM(M113:O125) -> 0
I127: 0.7 | K127: 0.399 | M127: =IF(M126>=I128,"HIGH RISK",IF(M126<=K128,"LOW RISK","MEDIUM RISK")) -> LOW RISK
I128: =70%*I126 -> 88.2 | K128: =39.9%*I126 -> 50.274
A129: ΚΕΦΑΛΑΙΟ 5: ΓΕΝΙΚΕΣ ΑΠΑΙΤΗΣΕΙΣ ΥΓΙΕΙΝΗΣ
A130: Α | B130: ΓΕΝΙΚΕΣ ΑΠΑΙΤΗΣΕΙΣ ΚΤΙΡΙΑΚΩΝ ΥΠΟΔΟΜΩΝ | F130: ΝΑΙ (Συμμόρφωση) | G130: ΜΕΡΙΚΗ ΣΥΜΜΟΡΦΩΣΗ | I130: ΟΧΙ (μη συμμόρφωση) | K130: Δεν εφαρμόζεται | M130: ΣΧΟΛΙΑ
B131: Εξωτερικό περιβάλλον
A132: 51 | B132: Σαφής οριοθέτηση | F132: 0 | G132: 3 | I132: 6 | K132: 0
A133: 52 | B133: Γειτνίαση με πηγές μόλυνσης | F133: 0 | G133: 6 | I133: 12 | K133: 0
A134: 53 | B134: Ικανοποιητική διαμόρφωση, καθαριότητα, υγιεινή | F134: 0 | G134: 6 | I134: 12 | K134: 0
A135: 54 | B135: Επικαιροποιημένη κάτοψη (layout) εγκατάστασης | F135: 0 | G135: 3 | I135: 6 | K135: 0
B136: Σχεδιασμός - Διαχωρισμός - επάρκεια χώρων
A137: 55 | B137: Επαρκές μέγεθος για τον συνήθη όγκο παραγωγής | F137: 0 | G137: 3 | I137: 6 | K137: 0
A138: 56 | B138: Ανεξάρτητη είσοδος – έξοδος προσωπικού, Α’ υλών, βοηθητικών υλών, υλικών συσκευασίας και τελικών προϊόντων ή χρονικός διαχωρισμός | F138: 0 | G138: 3 | I138: 6 | K138: 0
B139: Γενικά χαρακτηριστικά χώρων
A140: 57 | B140: Καταλληλόλητα υλικών κατασκευής | F140: 0 | G140: 6 | I140: 12 | K140: 0
A141: 58 | B141: Δυνατότητα επαρκούς καθαρισμού – απολύμανσης | F141: 0 | G141: 6 | I141: 12 | K141: 0
A142: 59 | B142: Αποτροπή συσσώρευσης ρύπων & υδρατμών | F142: 0 | G142: 6 | I142: 12 | K142: 0
A143: 60 | B143: Πλέγματα προστασίας στα ανοίγματα | F143: 0 | G143: 3 | I143: 6 | K143: 0
A144: 61 | B144: Επαρκής φωτισμός, προστατευόμενα φωτιστικά μέσα | F144: 0 | G144: 3 | I144: 6 | K144: 0
A145: 62 | B145: Επαρκής αερισμός, αποφυγή μηχανικής ροής αέρα από μολυσμένους σε καθαρούς χώρους | F145: 0 | G145: 6 | I145: 12 | K145: 0
A146: 63 | B146: Υγειονομικά φρεάτια – αποτελεσματική απομάκρυνση λυμάτων | F146: 0 | G146: 6 | I146: 12 | K146: 0
B147: Εξοπλισμός
A148: 64 | B148: Καταλληλόλητα υλικών | F148: 0 | G148: 6 | I148: 12 | K148: 0
A149: 65 | B149: Κατάλληλος σχεδιασμός τοποθέτηση | F149: 0 | G149: 6 | I149: 12 | K149: 0
A150: 66 | B150: Αυτόμαατες συσκευές ελέγχου παραμέτρων | F150: 0 | G150: 6 | I150: 12 | K150: 0
A151: 67 | B151: Εξοπλισμός & εργαλεία κατάλληλα για την πρόληψη φυσικών κιμδύνω (ανιχνευτές μετάλλων κτλ)/ Πολιτική ξένων σωμάτων (γυαλί, μεταλλικά κλπ) | F151: 0 | G151: 6 | I151: 12 | K151: 0
A152: 68 | B152: Κατάλληλα μέσα και εγκαταστάσεις καθαρισμού – απολύμανσης εξοπλισμού & εργαλείων | F152: 0 | G152: 6 | I152: 12 | K152: 0
B153: Χώροι υγεινής αποδυτήρια
A154: 69 | B154: Επαρκής αριθμός τουαλετών | F154: 0 | G154: 3 | I154: 6 | K154: 0
A155: 70 | B155: Επαρκής αερισμός | F155: 0 | G155: 3 | I155: 6 | K155: 0
A156: 71 | B156: Προθάλαμος τουαλετών με νιπτήρες που λειτουργούν κατά προτίμηση με τη χρήση ποδοκίνητου ή άλλου αντίστοιχου μηχανισμού. | F156: 0 | G156: 3 | I156: 6 | K156: 0
A157: 72 | B157: Παροχή ζεστού – κρύου νερού | F157: 0 | G157: 3 | I157: 6 | K157: 0
A158: 73 | B158: Διαθέσιμα υλικά απολύμανσης και στεγνώματος χεριών | F158: 0 | G158: 3 | I158: 6 | K158: 0
A159: 74 | B159: Αποδυτήρια με επαρκή αριθμό κατάλληλων ερμαριών | F159: 0 | G159: 3 | I159: 6 | K159: 0
A160: Β | B160: ΥΓΙΕΙΝΗ ΠΡΟΣΩΠΙΚΟΥ ΚΑΙ ΠΡΑΚΤΙΚΕΣ ΧΕΙΡΙΣΜΟΥ | F160: ΝΑΙ (Συμμόρφωση) | G160: ΜΕΡΙΚΗ ΣΥΜΜΟΡΦΩΣΗ | I160: ΟΧΙ (μη συμμόρφωση) | K160: Δεν εφαρμόζεται | M160: ΣΧΟΛΙΑ
A161: 75 | B161: Βεβαιώσεις υγείας για όλο το προσωπικό που σχετίζεται με τον χώρο παραγωγής ή έρχεται σε επαφή με τα τρόφιμα | F161: 0 | G161: 6 | I161: 12 | K161: 0
A162: 76 | B162: Πολιτική απαγόρευσης χειρισμού τροφίμων από ασθενείς εργαζόμενους με επίπτωση στα τρόφιμα | F162: 0 | G162: 3 | I162: 6 | K162: 0
A163: 77 | B163: Πρόσθετα μέτρα ελέγχου της υγείας του προσωπικού | F163: 0 | G163: 3 | I163: 6 | K163: 0
A164: 78 | B164: Κατάλληλος και καθαρός ιματισμός & ικανοποιητική ατομική υγιεινή προσωπικού | F164: 0 | G164: 3 | I164: 6 | K164: 0
A165: 79 | B165: Τηρούνται ορθές πρακτικές για χειρισμοί του προσωπικού: (κάλυμμα κεφαλής, πλύση, απολύμανση χεριών με κατάλληλο τρόπο & συχνότητα, σύμφωνα με τις διαδικασίες) και υφίσταται ελέγχομενη μετακίνηση | F165: 0 | G165: 6 | I165: 12 | K165: 0
A166: Γ | B166: ΣΥΝΤΗΡΗΣΗ ΕΞΟΛΙΣΜΟΥ/ ΔΙΑΚΡΙΒΩΣΗ ΟΡΓΑΝΩΝ ΜΕΤΡΗΣΗΣ | F166: ΝΑΙ (Συμμόρφωση) | G166: ΜΕΡΙΚΗ ΣΥΜΜΟΡΦΩΣΗ | I166: ΟΧΙ (μη συμμόρφωση) | K166: Δεν εφαρμόζεται | M166: ΣΧΟΛΙΑ
A167: 80 | B167: Πλάνο προγραμματισμένης & προληπτικής συντήρησης εξοπλισμού | F167: 0 | G167: 6 | I167: 12 | K167: 0
A168: 81 | B168: Τεκμηρίωση συντήρησης εξοπλισμού | F168: 0 | G168: 3 | I168: 6 | K168: 0
A169: 82 | B169: Τεκμηριωμένη διακρίβωσης οργάνων μέτρησης | F169: 0 | G169: 6 | I169: 12 | K169: 0
B170: ΣΥΝΟΛΟ ΚΕΦΑΛΑΙΟΥ 5 | I170: =SUM(I131:J169) -> 288 | M170: =SUM(M131:O169) -> 0
I171: 0.7 | K171: 0.399 | M171: =IF(M170>=I172,"HIGH RISK",IF(M170<=K172,"LOW RISK","MEDIUM RISK")) -> LOW RISK
I172: =70%*I170 -> 201.6 | K172: =39.9%*I170 -> 114.912
A173: ΚΕΦΑΛΑΙΟ 6: ΕΦΑΡΜΟΓΗ ΛΟΙΠΩΝ ΑΠΑΙΤΗΣΕΩΝ
A174: Α | B174: ΔΙΑΧΕΙΡΙΣΗ ΑΠΟΡΡΙΜΑΤΩΝ | F174: ΝΑΙ (Συμμόρφωση) | G174: ΜΕΡΙΚΗ ΣΥΜΜΟΡΦΩΣΗ | I174: ΟΧΙ (μη συμμόρφωση) | K174: Δεν εφαρμόζεται | M174: ΣΧΟΛΙΑ
A175: 83 | B175: Κατάλληλος χώρος αποθήκευσης απορριμάτων με σήμανση | F175: 0 | G175: 6 | I175: 12 | K175: 0
A176: 84 | B176: Απομάκρυνση απορριμμάτων από τους χώρους παραγωγής με κατάλληλη συχνότητα – αποφυγή επιμολύνσεων | F176: 0 | G176: 6 | I176: 12 | K176: 0
A177: Β | B177: ΔΙΑΧΕΙΡΙΣΗ ΠΑΡΑΠΡΟΪΟΝΤΩΝ/ΜΕΙΟΝΕΚΤΙΚΩΝ ΠΡΟΪΟΝΤΩΝ | F177: ΝΑΙ (Συμμόρφωση) | G177: ΜΕΡΙΚΗ ΣΥΜΜΟΡΦΩΣΗ | I177: ΟΧΙ (μη συμμόρφωση) | K177: Δεν εφαρμόζεται | M177: ΣΧΟΛΙΑ
A178: 85 | B178: Αποθήκευση πυρήνα και αποστολή σε μονάδες επεξεργασίας (έλεγχος τιμολογίων ως προς την ορθή αναγραφή του προϊόντος) | F178: 0 | G178: 6 | I178: 12 | K178: 0
A179: 86 | B179: Μέριμνα για την προστασία του ελαιοπυρήνα από φυσικούς κινδύνους και οποιαδήποτε χημική επιμόλυνση κατά τη συγκέντρωσή του, εφόσον αποτελέσει πρώτη ύλη για την παραγωγή πυρηνελαίου | F179: 0 | G179: 6 | I179: 12 | K179: 0
A180: 87 | B180: Αποθήκευση lampante ελαιολάδου και αποστολή σε μονάδες επεξεργασίας (έλεγχος τιμολογίων ως προς την ορθή αναγραφή του προϊόντος) | F180: 0 | G180: 6 | I180: 12 | K180: 0
A181: 88 | B181: Παραγωγή ελαίου από μειονεκτικό ελαιόκαρπο (λιώματα), ορθή αποθήκευση και επισήμανση ως lampante ελαιόλαδο | F181: 0 | G181: 6 | I181: 12 | K181: 0
A182: 89 | B182: Αποστολή μειονεκτικού ελαιοκάρπου (λιώματα) σε μονάδες επεξεργασίας (έλεγχος τιμολογίων ως προς την ορθή αναγραφή του προϊόντος) | F182: 0 | G182: 6 | I182: 12 | K182: 0
A183: Γ | B183: ΥΛΙΚΑ & ΑΝΤΙΚΕΙΜΕΝΑ ΣΕ ΕΠΑΦΗ | F183: ΝΑΙ (Συμμόρφωση) | G183: ΜΕΡΙΚΗ ΣΥΜΜΟΡΦΩΣΗ | I183: ΟΧΙ (μη συμμόρφωση) | K183: Δεν εφαρμόζεται | M183: ΣΧΟΛΙΑ
A184: 90 | B184: Χρήση κατάλληλων ΥΑΕΤ & με βάση τις οδηγίες του παρασκευαστή τους σε σχέση με το είδος του τροφίμου | F184: 0 | G184: 6 | I184: 12 | K184: 0
A185: 91 | B185: Συνοδευτικά πιστοποιητικά για τα ΥΑΕΤ βάσει της σχετικής νομοθεσίας όπου προβλέπονται (π.χ. δηλώσεις συμμόρφωσης για πλαστικά, κεραμικά κλπ) | F185: 0 | G185: 3 | I185: 6 | K185: 0
A186: 92 | B186: Ιχνηλασιμότητα ΥΑΕΤ | F186: 0 | G186: 3 | I186: 6 | K186: 0
A187: 93 | B187: Κατάλληλη αποθήκευση ΥΑΕΤ , ώστε να μην εκτίθενται σε κινδύνους | F187: 0 | G187: 3 | I187: 6 | K187: 0
A188: Δ | B188: ΕΠΙΣΗΜΑΝΣΗ | F188: ΝΑΙ (Συμμόρφωση) | G188: ΜΕΡΙΚΗ ΣΥΜΜΟΡΦΩΣΗ | I188: ΟΧΙ (μη συμμόρφωση) | K188: Δεν εφαρμόζεται | M188: ΣΧΟΛΙΑ
A189: 94 | B189: Ονομασία πώλησης: χρήση όρων του Καν. 29/2012 1) Εξαιρετικό παρθένο ελαιόλαδο 2) Παρθένο ελαιόλαδο 3) Ελαιόλαδο-αποτελούμενο από εξευγενισμένα ελαιόλαδα και παρθένα ελαιόλαδα 4) Πυρηνέλαιο | F189: 0 | G189: 9 | I189: 18 | K189: 0
A190: 95 | B190: Καθαρή ποσότητα | F190: 0 | G190: 6 | I190: 12 | K190: 0
A191: 96 | B191: Ημερομηνία ελάχιστης διατηρησιμότητας | F191: 0 | G191: 6 | I191: 12 | K191: 0
A192: 97 | B192: Τυχόν ιδιαίτερες συνθήκες αποθήκευσης ή/και συνθήκες χρήσης | F192: 0 | G192: 3 | I192: 6 | K192: 0
A193: 98 | B193: Όνομα ή εμπορική επωνυμία & δ/νση ΥΕΤ | F193: 0 | G193: 6 | I193: 12 | K193: 0
A194: 99 | B194: Χώρα καταγωγής ή ο τόπος προέλευσης (μόνο σε περιπτώσεις εξαιρετικά παρθένου ελαιολάδου και παρθένου ελαιολάδου σύμφωνα με Καν. 29/2012) | F194: 0 | G194: 9 | I194: 18 | K194: 0
A195: 100 | B195: Οδηγίες χρήσης (όπου απαιτείται) | F195: 0 | G195: 3 | I195: 6 | K195: 0
A196: 101 | B196: Διατροφική δήλωση | F196: 0 | G196: 6 | I196: 12 | K196: 0
A197: Ε | B197: ΠΡΟΣΘΕΤΕΣ ΑΠΑΙΤΗΣΕΙΣ ΚΑΝ. 29/2012 | F197: ΝΑΙ (Συμμόρφωση) | G197: ΜΕΡΙΚΗ ΣΥΜΜΟΡΦΩΣΗ | I197: ΟΧΙ (μη συμμόρφωση) | K197: Δεν εφαρμόζεται | M197: ΣΧΟΛΙΑ
A198: 102 | B198: Αναγραφή πληροφοριών για την κατηγορία του ελαιολάδου ή του πυρηνελαίου Π.χ. για εξαιρετικό παρθένο ελαιόλαδο: «ελαιόλαδο ανωτέρας κατηγορίας που παράγεται απευθείας από ελιές και μόνο με μηχανικές μεθόδους» | F198: 0 | G198: 3 | I198: 6 | K198: 0
A199: 103 | B199: Ορθή χρήση προαιρετικών ενδείξεων • Πρώτη πίεση εν ψυχρώ • Εξαγωγή εν ψυχρώ • Ενδείξεις οργανοληπτικών χαρακτηριστικών • Ενδείξεις οξύτητας, δείκτης υπεροξειδίων, περιεκτικότητα σε κηρούς, απορρόφηση στο υπεριώδες | F199: 0 | G199: 3 | I199: 6 | K199: 0
A200: Ε | B200: ΠΡΟΣΘΕΤΕΣ ΑΠΑΙΤΗΣΕΙΣ ΚΥΑ 323902 (ΦΕΚ 2026 Β’/18-9-2009) | F200: ΝΑΙ (Συμμόρφωση) | G200: ΜΕΡΙΚΗ ΣΥΜΜΟΡΦΩΣΗ | I200: ΟΧΙ (μη συμμόρφωση) | K200: Δεν εφαρμόζεται | M200: ΣΧΟΛΙΑ
A201: 104 | B201: Αριθμός παρτίδας (η ένδειξη παρτίδας είναι προαιρετική στην περίπτωση που η ημερομηνία ελάχιστης διατηρησιμότητας συμπεριλαμβάνει ένδειξη σαφή και κατά σειρά της ημέρας, του μήνα και του έτους | F201: 0 | G201: 3 | I201: 6 | K201: 0
A202: 105 | B202: Αλφαριθμητικός κωδικός έγκρισης | F202: 0 | G202: 9 | I202: 18 | K202: 0
A203: 106 | B203: Αναγραφή των κάτωθι υποχρεωτικών ενδείξεων στην κύρια ετικέτα: 1) Ονομασία πώλησης 2) Προσδιορισμός καταγωγής 3) Αλφαριθμητικός κωδικός έγκρισης (εφόσον αναγράφεται ο προσδιορισμός της καταγωγής) 4) Καθαρή ποσότητα 5) Ημερομηνία ελάχιστης διατηρησιμότητας | F203: 0 | G203: 6 | I203: 12 | K203: 0
B204: ΣΥΝΟΛΟ ΚΕΦΑΛΑΙΟΥ 6 | I204: =SUM(I175:J203) -> 258 | M204: =SUM(M175:O203) -> 0
I205: 0.7 | K205: 0.399 | M205: =IF(M204>=I206,"HIGH RISK",IF(M204<=K206,"LOW RISK","MEDIUM RISK")) -> LOW RISK
I206: =70%*I204 -> 180.6 | K206: =39.9%*I204 -> 102.942
A207: ΚΑΝΟΝΑΣ ΒΑΘΜΟΛΟΓΗΣΗΣ
... 27 more rows
